fUSD/lending_fUSD_20250201
["ID","MTS","AMOUNT","RATE_DAILY","PERIOD"]
[351160592,1738375832088,-500.0,0.00015826,2]
[351160593,1738375832097,-150.25,0.0001592,2]
[351160594,1738375832107,-150.33,0.0001592,2]
[351160595,1738375832116,-151.94,0.0001592,2]
[351160596,1738375832125,-150.0,0.0001596,2]
[351160597,1738375832134,-180.56,0.0001602,2]
[351160598,1738375832143,-883.5,0.00016027,2]
[351160599,1738375832152,-439.05,0.00016027,2]
[351160600,1738375832161,-1556.37,0.00016027,2]
[351160601,1738375832171,-255.31,0.0001608,2]
[351160602,1738375832180,-767.7,0.00016095,2]
[351160603,1738375832190,-150.0,0.00016438,2]
[351160604,1738375832199,-381.59,0.00016477,2]
[351160605,1738375832208,-370.05,0.00016492,2]
[351160606,1738375832217,-1000.0,0.000165,2]
[351160607,1738375832226,-20375.3303,0.000165,2]
[351160608,1738375832235,-223.0559259,0.00016522,2]
[351160609,1738375832245,-177.8967797,0.00016541,2]
[351160610,1738375832254,-185.31,0.00016658,30]
[351160611,1738375832263,-2172.0,0.000167,2]
[351160612,1738375832273,-176.29,0.00016712,2]
[351160613,1738375832282,-500.0,0.00016744,2]
[351160614,1738375832291,-372.38,0.00016764,2]
[351160615,1738375832300,-180.19365308,0.0001678,2]
[351160616,1738375832309,-500.0,0.00016795,2]
[351160617,1738375832318,-151.29,0.000168,2]
[351160618,1738375832326,-375.94,0.000168,2]
[351160619,1738375832336,-14046.68234175,0.00016804,2]
[351160620,1738375832347,-104595.66916177,0.00016804,2]
[351160621,1738375832360,-266.12,0.00016813,2]
[351160622,1738375832370,-255.31,0.00016845,2]
[351160623,1738375832379,-736.4710562,0.00016868,2]
[351160624,1738375832388,-2139.6338582,0.00016868,2]
[351160625,1738375832398,-202.6860693,0.00016868,2]
[351160626,1738375832407,-6513.2962916,0.00016868,2]
[351160627,1738375832416,-504.29848858,0.00016873,2]
[351160628,1738375832427,-501.2413164,0.00016873,2]
[351160629,1738375832436,-3000.0,0.00016879,2]
[351160630,1738375832445,-261424.59353493,0.0001688,2]
[351160631,1738375832454,-151.0,0.0001688,2]
[351160632,1738375832463,-151.0,0.0001688,2]
[351160633,1738375832472,-151.0,0.0001688,2]
[351160634,1738375832482,-151.0,0.0001688,2]
[351160635,1738375832491,-199.62134516,0.0001688,2]
[351160636,1738375832500,-606.53358886,0.000169,2]
[351160637,1738375832509,-1100.0,0.00016922,2]
[351160638,1738375832518,-150.14,0.00016992,2]
[351160639,1738375832527,-845.0,0.00017,2]
[351160640,1738375832536,-283.0,0.00017,2]
[351160641,1738375832546,-650.0,0.00017,2]
[351160642,1738375832555,-774.81407736,0.00017002,2]
[351160643,1738375832565,-180.193653,0.00017002,2]
[351160644,1738375832574,-606.53358885,0.00017072,2]
[351160645,1738375832583,-281.66,0.00017084,2]
[351160646,1738375832592,-212.11481602,0.00017123,2]
[351160647,1738375832601,-152.93,0.0001714,2]
[351160648,1738375832611,-500.0,0.00017196,2]
[351160649,1738375832620,-436.13559,0.000172,2]
[351160650,1738375832629,-4366.42889,0.000172,2]
[351160651,1738375832638,-774.81407736,0.00017224,2]
[351160652,1738375832647,-180.193653,0.00017224,2]
[351160653,1738375832656,-606.53358885,0.00017245,2]
[351160654,1738375832665,-1422.02,0.0001726,2]
[351160655,1738375832674,-1422.02,0.0001726,2]
[351160656,1738375832683,-1422.02,0.0001726,2]
[351160657,1738375832692,-1422.02,0.0001726,2]
[351160658,1738375832700,-1422.02,0.0001726,2]
[351160659,1738375832709,-1422.02,0.0001726,2]
[351160660,1738375832718,-1422.02,0.0001726,2]
[351160661,1738375832727,-1422.02,0.0001726,2]
[351160662,1738375832736,-1422.02,0.0001726,2]
[351160663,1738375832745,-1422.02,0.0001726,2]
[351160664,1738375832754,-1422.02,0.0001726,2]
[351160665,1738375832762,-1422.02,0.0001726,2]
[351160666,1738375832771,-1422.02,0.0001726,2]
[351160667,1738375832780,-1422.02,0.0001726,2]
[351160668,1738375832789,-1422.02,0.0001726,2]
[351160669,1738375832798,-1422.02,0.0001726,2]
[351160670,1738375832808,-1422.02,0.0001726,2]
[351160671,1738375832817,-1422.02,0.0001726,2]
[351160672,1738375832825,-1422.02,0.0001726,2]
[351160673,1738375832835,-1422.02,0.0001726,2]
[351160674,1738375832845,-1422.02,0.0001726,2]
[351160675,1738375832853,-1422.02,0.0001726,2]
[351160676,1738375832862,-1422.02,0.0001726,2]
[351160677,1738375832872,-1422.1335885,0.0001726,2]
[351160678,1738375832881,-150.0,0.00017409,2]
[351160679,1738375832890,-606.53358885,0.00017417,2]
[351160680,1738375832899,-774.81407736,0.00017447,2]
[351160681,1738375832908,-180.193653,0.00017447,2]
[351160682,1738375832917,-200.0,0.00017483,2]
[351160683,1738375832927,-200.0,0.00017494,2]
[351160684,1738375832936,-206.1639032,0.00017496,2]
[351160685,1738375832945,-2288.54109041,0.00017496,2]
[351160686,1738375832954,-200.0,0.00017498,2]
[351160687,1738375832963,-206.1639032,0.00017502,2]
[351160688,1738375832973,-200.0,0.00017507,2]
[351160689,1738375832982,-2288.54109041,0.00017508,2]
[351160690,1738375832991,-554.31632488,0.00017515,2]
[351160691,1738375833002,-206.1639032,0.00017537,2]
[351160692,1738375833011,-200.0,0.00017551,2]
[351160693,1738375833020,-2288.54109041,0.0001756,2]
[351160694,1738375833030,-554.31632488,0.0001757,2]
[351160695,1738375833039,-554.31632488,0.00017575,2]
[351160696,1738375833049,-554.31632488,0.00017583,2]
[351160697,1738375833058,-1000.0,0.00017584,2]
[351160698,1738375833068,-200.0,0.00017584,2]
[351160699,1738375833077,-206.1639032,0.00017588,2]
[351160700,1738375833086,-606.53358885,0.0001759,2]
[351160701,1738375833096,-2288.54109041,0.00017597,2]
[351160702,1738375833105,-255.31,0.00017611,2]
[351160703,1738375833115,-164.02,0.00017617,2]
[351160704,1738375833124,-605.2,0.00017617,2]
[351160705,1738375833133,-1000.0,0.00017633,2]
[351160706,1738375833142,-774.81407736,0.00017669,2]
[351160707,1738375833151,-180.193653,0.00017669,2]
[351160708,1738375833160,-152.0,0.00017708,3]
[351160709,1738375833169,-265.16,0.00017728,2]
[351160710,1738375833179,-9999.99,0.00017728,2]
[351160711,1738375833189,-813.02,0.00017728,2]
[351160712,1738375833199,-28951.34,0.00017728,2]
[351160713,1738375833208,-150.99,0.00017728,2]
[351160714,1738375833217,-999.99,0.00017728,2]
[351160715,1738375833226,-9999.99,0.00017728,2]
[351160716,1738375833236,-1275.781,0.00017743,2]
[351160717,1738375833245,-150.429,0.00017743,2]
[351160718,1738375833255,-910.844,0.00017743,2]
[351160719,1738375833264,-784.0,0.00017743,2]
[351160720,1738375833274,-1323.0,0.00017743,2]
[351160721,1738375833283,-3931.175,0.00017743,2]
[351160722,1738375833293,-1006.0,0.00017743,2]
[351160723,1738375833302,-285.973,0.00017743,2]
[351160724,1738375833312,-606.53358885,0.00017762,2]
[351160725,1738375833321,-173.423,0.00017816,2]
[351160726,1738375833331,-1438.241,0.00017816,2]
[351160727,1738375833340,-774.81407736,0.00017891,2]
[351160728,1738375833353,-180.193653,0.00017891,2]
[351160729,1738375833362,-1576.62,0.000179,2]
[351160730,1738375833371,-7688.998,0.000179,2]
[351160731,1738375833381,-221.0,0.000179,2]
[351160732,1738375833391,-209.05850395,0.000179,2]
[351160733,1738375833401,-606.53358885,0.00017934,2]
[351160734,1738375833410,-896.14,0.00017943,2]
[351160735,1738375833419,-152.0,0.00017977,4]
[351160736,1738375833430,-236.21594069,0.00017999,7]
[351160737,1738375833439,-844.0,0.00018,2]
[351160738,1738375833448,-281.0,0.00018,2]
[351160739,1738375833458,-33050.20608948,0.00018,2]
[351160740,1738375833468,-11655.45961681,0.00018,2]
[351160741,1738375833490,-74496.59360206,0.00018,2]
[351160742,1738375833509,-922.539993,0.00018,2]
[351160743,1738375833525,-383.82866834,0.00018,2]
[351160744,1738375833536,-1470.9993,0.00018,2]
[351160745,1738375833692,-419.03,0.00018,2]
[351160748,1738375837706,-1110.415,0.00017743,2]
[351160749,1738375837718,-19359.46005796,0.00018,2]
[351160750,1738375837760,-975.8456776,0.00018,2]
[351160751,1738375837865,-25952.56340085,0.00018,2]
[351160752,1738375837921,-38512.43422982,0.00018,2]
[351160753,1738375837972,-11276.44661764,0.00018,2]
[351160754,1738375838079,-5814.98992078,0.00018,2]
[351160765,1738375839767,-34578.69763969,0.00018,2]
[351160767,1738375840226,-464.86247294,0.00018,2]
[351160769,1738375840253,-44902.54656854,0.00018,2]
[351160772,1738375840272,-878.81397309,0.00018,2]
[351160774,1738375840283,-1539.9016145,0.00018,2]
[351160784,1738375842959,-1529.96155212,0.00018,2]
[351160798,1738375845869,-6778.0,0.00018,2]
[351160799,1738375845885,-10558.95,0.00018,2]
[351160800,1738375845897,-3536.05,0.00018,2]
[351160801,1738375845947,-14221.02509426,0.00018,2]
[351160802,1738375845957,-151.0,0.00018,2]
[351160803,1738375845965,-4007.92,0.00018,2]
[351160804,1738375845974,-23669.19662838,0.00018,2]
[351160805,1738375845984,-1100.0,0.00018018,2]
[351160806,1738375845993,-1249.33,0.00018082,2]
[351160807,1738375846002,-151.61,0.00018082,2]
[351160808,1738375846012,-606.53358885,0.00018107,2]
[351160809,1738375846021,-774.81407736,0.00018113,2]
[351160810,1738375846030,-180.193653,0.00018113,2]
[351160811,1738375846039,-152.0,0.00018246,5]
[351160812,1738375846048,-606.53358885,0.00018279,2]
[351160813,1738375846057,-500.0,0.00018292,2]
[351160814,1738375846066,-774.81407736,0.00018336,2]
[351160815,1738375846075,-180.193653,0.00018336,2]
[351160816,1738375846083,-18147.17291565,0.00018356,2]
[351160817,1738375846094,-1039.449305,0.00018356,2]
[351160818,1738375846122,-63270.01777935,0.00018356,2]
[351160819,1738375846131,-255.8,0.00018359,2]
[351160820,1738375846140,-9091.72651446,0.00018361,2]
[351160821,1738375846150,-255.31,0.00018377,2]
[351160823,1738375846158,-1627.0,0.00018452,2]
[351160824,1738375846168,-606.53358885,0.00018452,2]
[351160826,1738375846177,-281.66,0.00018454,2]
[351160828,1738375846186,-502.50260082,0.00018498,2]
[351160830,1738375846195,-152.0,0.00018516,6]
[351160832,1738375846204,-165.82569676,0.00018517,2]
[351160850,1738375846360,-9091.72651446,0.0001852,2]
[351160852,1738375846369,-774.81407736,0.00018558,2]
[351160854,1738375846379,-180.193653,0.00018558,2]
[351160856,1738375846388,-174.32,0.000186,2]
[351160858,1738375846398,-5638.2552727,0.00018617,2]
[351160860,1738375846407,-606.53358885,0.00018624,2]
[351160862,1738375846416,-180.56,0.00018664,2]
[351160864,1738375846425,-192.96881463,0.0001867,2]
[351160866,1738375846435,-131564.08328252,0.0001868,2]
[351160868,1738375846445,-500.0,0.00018731,2]
[351160870,1738375846454,-1249.33,0.00018751,2]
[351160871,1738375846463,-500.0,0.00018758,2]
[351160873,1738375846473,-4148.4271,0.00018776,2]
[351160875,1738375846483,-774.81407736,0.0001878,2]
[351160877,1738375846492,-180.193653,0.0001878,2]
[351160879,1738375846501,-9091.72651446,0.0001878,2]
[351160881,1738375846511,-152.0,0.00018785,7]
[351160883,1738375846520,-500.0,0.00018786,2]
[351160885,1738375846530,-606.53358885,0.00018797,2]
[351160887,1738375846539,-150.0,0.000188,6]
[351160889,1738375846549,-782.01519016,0.00018813,2]
[351160891,1738375846558,-500.0,0.00018873,2]
[351160893,1738375846568,-500.0,0.00018873,2]
[351160895,1738375846577,-500.76672113,0.00018873,2]
[351160897,1738375846587,-573.77892129,0.00018873,2]
[351160899,1738375846596,-503.7529805,0.00018873,2]
[351160902,1738375846607,-999.0,0.00018875,2]
[351160903,1738375846616,-900.0,0.00018876,2]
[351160906,1738375846626,-900.0,0.00018876,2]
[351160907,1738375846635,-900.0,0.00018876,2]
[351160909,1738375846644,-900.0,0.00018876,2]
[351160911,1738375846653,-900.0,0.00018876,2]
[351160913,1738375846662,-900.0,0.00018876,2]
[351160915,1738375846673,-900.0,0.00018876,2]
[351160917,1738375846682,-900.0,0.00018876,2]
[351160919,1738375846691,-900.0,0.00018876,2]
[351160921,1738375846701,-900.0,0.00018876,2]
[351160923,1738375846710,-125136.35378747,0.00018876,7]
[351160948,1738376861318,1444.69733439,0.0001,2]
[351160949,1738376877449,1504.71464439,0.0001,2]
[351160981,1738377032302,-164.8,0.00013699,2]
[351160982,1738377032311,-150.0,0.00015068,2]
[351160983,1738377032320,-836.79,0.00015453,2]
[351160984,1738377032330,-363.12,0.00016057,2]
[351160985,1738377032339,-1000.0,0.00016064,2]
[351160986,1738377032349,-775.93932393,0.00016122,2]
[351160987,1738377032360,-262.92123408,0.00016122,2]
[351160988,1738377032370,-375.04,0.00016222,2]
[351160989,1738377032380,-187.08379716,0.0001629,2]
[351160990,1738377032390,-300.0,0.00016392,2]
[351160992,1738377032399,-178.0,0.00016392,2]
[351160994,1738377032408,-321.30271176,0.00016393,2]
[351160996,1738377032420,-271.31728824,0.00016393,2]
[351160998,1738377032429,-388.51734549,0.00016393,2]
[351161002,1738377032453,-458.65265451,0.00016393,2]
[351161003,1738377032462,-8017.41422118,0.00016393,2]
[351161004,1738377032473,-1982.57577882,0.00016393,2]
[351161005,1738377032481,-740.8,0.00016393,2]
[351161006,1738377032490,-150.99,0.00016393,2]
[351161007,1738377032499,-170.83,0.00016469,2]
[351161008,1738377032507,-1293.70554046,0.00016469,2]
[351161009,1738377032518,-3071.96445954,0.00016469,2]
[351161010,1738377032527,-2986.85293096,0.00016469,2]
[351161023,1738377032767,-1560.70628981,0.00016469,2]
[351161024,1738377032779,-1650.40400878,0.00016469,2]
[351161025,1738377032791,-2535.45362981,0.00016469,2]
[351161026,1738377032831,-1266.57314064,0.00016469,2]
[351161027,1738377032843,-983.66249056,0.0001649,2]
[351161028,1738377032855,-573.91,0.00016516,2]
[351161029,1738377032865,-172.71,0.00016522,2]
[351161030,1738377032874,-200.0,0.00016596,2]
[351161031,1738377032884,-371.78,0.00016722,2]
[351161032,1738377032893,-369.75,0.00016722,2]
[351161033,1738377032902,-370.56,0.00016722,2]
[351161034,1738377032911,-375.85,0.00016722,2]
[351161035,1738377032920,-369.89,0.00016722,2]
[351161036,1738377032929,-377.77,0.00016722,2]
[351161037,1738377032939,-375.2,0.00016722,2]
[351161038,1738377032948,-379.23,0.00016722,2]
[351161039,1738377032957,-250.0,0.00016792,2]
[351161040,1738377032967,-376.04,0.00016821,2]
[351161041,1738377032976,-381.14,0.00016822,2]
[351161042,1738377032986,-380.17,0.00016822,2]
[351161043,1738377032997,-381.43,0.00016822,2]
[351161044,1738377033006,-368.68,0.00016822,2]
[351161045,1738377033015,-378.69,0.00016822,2]
[351161046,1738377033024,-18413.85336126,0.0001688,2]
[351161047,1738377033037,-29928.74327668,0.0001688,2]
[351161048,1738377033046,-37818.04002679,0.0001688,2]
[351161057,1738377037965,-301.33,0.00013,2]
[351161211,1738377039933,-248.67,0.00013,2]
[351161213,1738377039942,-600.0,0.00015,2]
[351161216,1738377039952,-375.68,0.0001688,2]
[351161218,1738377039965,-435.72913423,0.0001688,2]
[351161233,1738377040093,-344.75210193,0.0001688,2]
[351161240,1738377040150,-4752.07972932,0.0001688,2]
[351161242,1738377040162,-665.10885509,0.0001688,2]
[351161248,1738377040212,-1693.3984075,0.0001688,2]
[351161250,1738377040223,-379.2820144,0.0001688,2]
[351161253,1738377040234,-586.89997212,0.0001688,2]
[351161257,1738377040264,-27884.76142403,0.0001688,2]
[351161259,1738377040273,-517.0,0.00016904,2]
[351161261,1738377040282,-382.15,0.00016922,2]
[351161263,1738377040292,-377.98,0.00016922,2]
[351161264,1738377040302,-379.14,0.00016922,2]
[351161265,1738377040311,-12.37916663,0.00016922,2]
[351161266,1738377040326,-366.83083337,0.00016922,2]
[351161267,1738377040336,-382.36,0.00016922,2]
[351161268,1738377040344,-375.88715963,0.00016922,2]
[351161269,1738377040356,-5.69284037,0.00016922,2]
[351161270,1738377040365,-380.64,0.00016922,2]
[351161271,1738377040374,-380.43,0.00016922,2]
[351161272,1738377040384,-382.18,0.00016922,2]
[351161273,1738377040393,-244.55768536,0.00016922,2]
[351161309,1738377043072,-23900.0,0.00016839,2]
[351161310,1738377043082,-134.23231464,0.00016922,2]
[351161311,1738377043091,-500.0,0.00016922,2]
[351161312,1738377043101,-1100.0,0.00016922,2]
[351161313,1738377043110,-187.08379716,0.00016954,2]
[351161314,1738377043120,-474.50619914,0.00017,2]
[351161315,1738377043131,-175.49380086,0.00017,2]
[351161316,1738377043141,-150.0,0.00017331,2]
[351161317,1738377043151,-556.46,0.00017337,2]
[351161318,1738377043160,-172.71,0.00017348,2]
[351161319,1738377043169,-1150.58191125,0.00017478,2]
[351161320,1738377043178,-613.87479101,0.00017493,2]
[351161321,1738377043187,-200.0,0.00017493,2]
[351161322,1738377043197,-1150.58191125,0.00017498,2]
[351161323,1738377043207,-2589.17288493,0.000175,2]
[351161324,1738377043219,-613.87479101,0.00017524,2]
[351161325,1738377043228,-925.53,0.00017525,2]
[351161326,1738377043238,-330.84,0.00017525,2]
[351161327,1738377043247,-1150.58191125,0.00017538,2]
[351161328,1738377043257,-200.0,0.00017539,2]
[351161329,1738377043267,-613.87479101,0.00017559,2]
[351161330,1738377043276,-200.0,0.00017562,2]
[351161331,1738377043285,-613.87479101,0.00017566,2]
[351161332,1738377043295,-200.0,0.00017588,2]
[351161333,1738377043304,-1150.58191125,0.000176,2]
[351161334,1738377043314,-187.08379716,0.00017618,2]
[351161335,1738377043322,-500.0,0.00017667,2]
[351161336,1738377043331,-181.22,0.00017675,2]
[351161337,1738377043341,-836.79,0.00017717,2]
[351161339,1738377043350,-1419.33,0.000178,2]
[351161341,1738377043359,-173.4244404,0.00017807,2]
[351161343,1738377043368,-1403.175,0.00017807,2]
[351161345,1738377043377,-152.0,0.00017843,3]
[351161347,1738377043387,-1323.0,0.00017872,2]
[351161349,1738377043396,-150.0,0.00017872,2]
[351161351,1738377043405,-225.589,0.00017872,2]
[351161353,1738377043414,-150.0,0.00017898,2]
[351161355,1738377043423,-384.51031364,0.000179,2]
[351161357,1738377043432,-420.0,0.00017914,2]
[351161360,1738377043441,-319.33,0.00017918,2]
[351161361,1738377043449,-3171.07674151,0.00018,2]
[351161363,1738377043460,-3799.60351623,0.00018,2]
[351161366,1738377043472,-1836.16629,0.00018,2]
[351161368,1738377043483,-5308.03231515,0.00018,2]
[351161374,1738377043527,-253.54840649,0.00018,2]
[351161376,1738377043538,-804.4,0.00018,2]
[351161378,1738377043548,-728.39843879,0.00018,2]
[351161381,1738377043568,-2398.97558914,0.00018,2]
[351161383,1738377043578,-1136.35742401,0.00018,2]
[351161385,1738377043586,-16569.20277445,0.00018,2]
[351161387,1738377043598,-16788.45929516,0.00018,2]
[351161390,1738377043609,-1034.35286405,0.00018,2]
[351161391,1738377043619,-5620.26553423,0.00018,2]
[351161394,1738377043628,-376.17,0.00018,2]
[351161396,1738377043637,-379.81,0.00018,2]
[351161398,1738377043646,-380.04,0.00018,2]
[351161399,1738377043655,-381.75,0.00018,2]
[351161401,1738377043664,-380.03,0.00018,2]
[351161403,1738377043673,-380.35,0.00018,2]
[351161405,1738377043682,-500.0,0.00018018,2]
[351161407,1738377043691,-1100.0,0.00018018,2]
[351161409,1738377043700,-384.51031349,0.00018038,2]
[351161412,1738377043715,-153.50017892,0.00018056,2]
[351161414,1738377043724,-363.12,0.00018065,2]
[351161416,1738377043733,-1000.0,0.00018072,2]
[351161418,1738377043743,-1633.43,0.00018082,2]
[351161420,1738377043752,-1699.76781497,0.000181,2]
[351161422,1738377043761,-56451.87002153,0.000181,2]
[351161446,1738377045926,-1220.31603624,0.000181,2]
[351161447,1738377045938,-18983.3224253,0.000181,2]
[351161448,1738377045982,-300.0,0.000181,2]
[351161449,1738377045993,-678.14139368,0.000181,2]
[351161450,1738377046005,-45772.65064236,0.000181,2]
[351161451,1738377046039,-325.91,0.000181,2]
[351161452,1738377046050,-11373.60264197,0.000181,2]
[351161453,1738377046224,-2847.23246661,0.000181,2]
[351161454,1738377046236,-2438.43008209,0.000181,2]
[351161455,1738377046255,-284.55836231,0.000181,2]
[351161456,1738377046266,-679.40528476,0.000181,2]
[351161457,1738377046278,-1993.50363819,0.000181,2]
[351161458,1738377046302,-500.0,0.000181,2]
[351161459,1738377046328,-322.8916,0.000181,2]
[351161460,1738377046340,-485.22732997,0.000181,2]
[351161461,1738377046355,-20581.63367942,0.000181,2]
[351161469,1738377228594,346.0,0.00021,120]
[351161471,1738377696938,301.71,0.00010137,2]
[351161476,1738378211925,-150.0,0.00021521,120]
[351161477,1738378211969,-150.0,0.00022135,120]
[351161478,1738378211996,-204.636113,0.00022509,120]
[351161479,1738378212022,-42.0,0.00023,120]
[351161480,1738378212049,-200.0,0.00023,120]
[351161484,1738378232161,-5800.0,0.0001352,2]
[351161485,1738378232171,-3253.36066244,0.00013529,2]
[351161486,1738378232183,-2546.63933756,0.00013529,2]
[351161487,1738378232195,-150.0,0.00013533,2]
[351161488,1738378232205,-5800.0,0.00013537,2]
[351161489,1738378232214,-864.29,0.00014297,2]
[351161490,1738378232223,-150.0,0.00014596,2]
[351161491,1738378232233,-150.0,0.00014882,2]
[351161492,1738378232243,-150.0,0.00014882,2]
[351161493,1738378232253,-150.52,0.00015934,2]
[351161494,1738378232263,-4480.74,0.00016121,2]
[351161495,1738378232273,-1000.0,0.0001617,2]
[351161496,1738378232282,-304.64,0.00016198,2]
[351161497,1738378232291,-5466.97331244,0.00016205,2]
[351161498,1738378232314,-1259.09668756,0.00016205,2]
[351161499,1738378232323,-489.32,0.00016233,2]
[351161500,1738378232332,-864.29,0.00016561,2]
[351161501,1738378232342,-150.0,0.00016658,2]
[351161502,1738378232351,-320.26,0.00016676,2]
[351161503,1738378232360,-320.26,0.0001668,2]
[351161504,1738378232539,-320.26,0.00016685,2]
[351161505,1738378232549,-320.26,0.00016689,2]
[351161506,1738378232560,-320.26,0.00016694,2]
[351161507,1738378232570,-320.26,0.00016698,2]
[351161508,1738378232579,-320.26,0.00016702,2]
[351161509,1738378232588,-320.26,0.00016707,2]
[351161510,1738378232598,-320.26,0.00016711,2]
[351161511,1738378232607,-176.14,0.00016712,2]
[351161512,1738378232616,-176.62,0.00016712,2]
[351161513,1738378232627,-320.26,0.00016716,2]
[351161514,1738378232637,-320.26,0.0001672,2]
[351161515,1738378232647,-320.26,0.00016724,2]
[351161516,1738378232657,-320.26,0.00016729,2]
[351161517,1738378232666,-150.0,0.00016733,2]
[351161518,1738378232675,-320.26,0.00016733,2]
[351161519,1738378232684,-591.78,0.00016734,2]
[351161520,1738378232693,-250.0,0.00016734,2]
[351161522,1738378232702,-320.26,0.00016737,2]
[351161523,1738378232711,-320.26,0.00016742,2]
[351161525,1738378232720,-320.26,0.00016746,2]
[351161527,1738378232729,-320.26,0.00016751,2]
[351161529,1738378232738,-320.26,0.00016755,2]
[351161530,1738378232748,-320.26,0.00016759,2]
[351161531,1738378232757,-301.71,0.00016813,2]
[351161532,1738378232766,-200.0,0.00016857,2]
[351161533,1738378232775,-150.99,0.00016922,2]
[351161534,1738378232784,-150.99,0.00016922,2]
[351161535,1738378232793,-3714.66,0.00016922,2]
[351161536,1738378232803,-372.31,0.00016922,2]
[351161537,1738378232813,-380.15,0.00016922,2]
[351161538,1738378232822,-378.46,0.00016922,2]
[351161539,1738378232832,-372.35,0.00016922,2]
[351161540,1738378232841,-373.79,0.00016922,2]
[351161541,1738378232850,-381.48,0.00016922,2]
[351161542,1738378232860,-379.58,0.00016922,2]
[351161543,1738378232869,-500.0,0.00016922,2]
[351161545,1738378232878,-1100.0,0.00016922,2]
[351161547,1738378232887,-218.77,0.00016929,2]
[351161549,1738378232897,-170.22,0.0001697,2]
[351161551,1738378232907,-150.0,0.00016977,2]
[351161553,1738378232915,-1012.98,0.0001715,2]
[351161555,1738378232925,-200.0,0.00017186,2]
[351161557,1738378232934,-694.0,0.00017732,2]
[351161559,1738378232943,-218.77,0.00017776,2]
[351161561,1738378232952,-1004.57342061,0.00017793,2]
[351161563,1738378232961,-1277.473,0.00017794,2]
[351161564,1738378232971,-586.854,0.00017794,2]
[351161566,1738378232981,-1879.471,0.00017794,2]
[351161568,1738378232990,-3030.964,0.00017794,2]
[351161570,1738378233000,-785.0,0.00017794,2]
[351161572,1738378233010,-1271.191,0.00017794,2]
[351161575,1738378233020,-913.587,0.00017794,2]
[351161577,1738378233029,-233.647,0.00017794,2]
[351161579,1738378233039,-541.573,0.00017794,2]
[351161581,1738378233049,-1323.0,0.00017794,2]
[351161583,1738378233059,-3908.0,0.00017794,2]
[351161585,1738378233068,-150.919,0.00017794,2]
[351161587,1738378233078,-1006.0,0.00017794,2]
[351161589,1738378233087,-379.15,0.00017794,2]
[351161591,1738378233097,-375.37,0.00017794,2]
[351161592,1738378233106,-1354.19,0.000178,2]
[351161595,1738378233116,-1000.0,0.00017867,2]
[351161596,1738378233126,-221.5577,0.000179,2]
[351161598,1738378233135,-312.4314,0.000179,2]
[351161600,1738378233145,-2008.5965,0.000179,2]
[351161602,1738378233155,-5305.3328,0.000179,2]
[351161604,1738378233164,-181.11257535,0.00017999,2]
[351161606,1738378233174,-1404.732,0.00017999,2]
[351161608,1738378233188,-4280.70561618,0.00017999,2]
[351161610,1738378233198,-60000.0,0.00018,3]
[351161612,1738378233208,-44825.6487,0.00018,2]
[351161614,1738378233218,-1000.0,0.00018,2]
[351161616,1738378233229,-18452.0695,0.00018,2]
[351161618,1738378233238,-282.1648,0.00018,2]
[351161620,1738378233250,-156.78485982,0.00018,2]
[351161622,1738378233260,-1000.0,0.00018,2]
[351161624,1738378233272,-154.96281552,0.00018,2]
[351161626,1738378233281,-2500.0,0.00018,2]